[Event "Early-Titled-Tuesday-Blitz-May-14-2024"]
[Site "Chess.com"]
[Date "2024.05.14"]
[Round "1"]
[White "Sokoloco"]
[Black "MaiqMaster"]
[Result "1-0"]
[WhiteElo "2785"]
[BlackElo "2449"]
[TimeControl "180+1"]
[EndTime "8:05:56 PDT"]
[Termination "Sokoloco won by resignation"]

1. b3 {[%clk 0:02:02.9]} 1... Nf6 {[%clk 0:02:52.6]} 2. Bb2 {[%clk 0:02:02.2]}
2... c5 {[%clk 0:02:53.2]} 3. c4 {[%clk 0:02:00.7]} 3... Nc6 {[%clk 0:02:53.5]}
4. g3 {[%clk 0:02:00.9]} 4... g6 {[%clk 0:02:53.7]} 5. Bxf6 {[%clk 0:01:55.6]}
5... exf6 {[%clk 0:02:54.6]} 6. Nc3 {[%clk 0:01:55.1]} 6... Bg7 {[%clk
0:02:54.6]} 7. Bg2 {[%clk 0:01:54.6]} 7... O-O {[%clk 0:02:54.6]} 8. e3 {[%clk
0:01:50.2]} 8... f5 {[%clk 0:02:51.9]} 9. Nge2 {[%clk 0:01:50.6]} 9... d6 {[%clk
0:02:51.7]} 10. O-O {[%clk 0:01:50.7]} 10... Be6 {[%clk 0:02:50.8]} 11. Rc1
{[%clk 0:01:49.1]} 11... Ne7 {[%clk 0:02:39.6]} 12. Bxb7 {[%clk 0:01:46.5]}
12... Rb8 {[%clk 0:02:38.6]} 13. Bg2 {[%clk 0:01:46.7]} 13... d5 {[%clk
0:02:38.3]} 14. cxd5 {[%clk 0:01:44.3]} 14... Nxd5 {[%clk 0:02:38]} 15. Nxd5
{[%clk 0:01:40.5]} 15... Bxd5 {[%clk 0:02:38.9]} 16. Rxc5 {[%clk 0:01:38.1]}
16... Bxg2 {[%clk 0:02:25.5]} 17. Kxg2 {[%clk 0:01:39]} 17... Qd3 {[%clk
0:02:22.7]} 18. Nf4 {[%clk 0:01:38.2]} 18... Qe4+ {[%clk 0:02:19.4]} 19. Qf3
{[%clk 0:01:36.3]} 19... Rfd8 {[%clk 0:02:19.3]} 20. d4 {[%clk 0:01:33.1]} 20...
Qe7 {[%clk 0:02:04]} 21. Rfc1 {[%clk 0:01:32.6]} 21... Qd6 {[%clk 0:01:58]} 22.
Qc6 {[%clk 0:01:26.7]} 22... Qe7 {[%clk 0:01:55.7]} 23. Qf3 {[%clk 0:01:26]}
23... Qd6 {[%clk 0:01:55.4]} 24. Rc7 {[%clk 0:01:23.2]} 24... Qa6 {[%clk
0:01:52.7]} 25. Qe2 {[%clk 0:01:18.8]} 25... Qa5 {[%clk 0:01:50.4]} 26. R1c2
{[%clk 0:01:13.6]} 26... g5 {[%clk 0:01:45.5]} 27. Qh5 {[%clk 0:01:08.9]} 27...
Rf8 {[%clk 0:01:27]} 28. Qxg5 {[%clk 0:01:07.1]} 28... h6 {[%clk 0:01:27.3]} 29.
Qe7 {[%clk 0:01:04.4]} 29... Qe1 {[%clk 0:01:16.3]} 30. Rxa7 {[%clk 0:00:57.1]}
30... Rbe8 {[%clk 0:01:11.5]} 31. Qd7 {[%clk 0:00:54.9]} 31... Qd1 {[%clk
0:01:07.1]} 32. Qxf5 {[%clk 0:00:52.2]} 32... Qb1 {[%clk 0:00:56.4]} 33. Rac7
{[%clk 0:00:50.9]} 33... Ra8 {[%clk 0:00:54.8]} 34. Nh5 {[%clk 0:00:48.4]} 34...
Rxa2 {[%clk 0:00:52.2]} 35. Qg4 {[%clk 0:00:48.1]} 1-0

[Event "Early-Titled-Tuesday-Blitz-May-14-2024"]
[Site "Chess.com"]
[Date "2024.05.14"]
[Round "1"]
[White "Der_Balak_3Halak"]
[Black "krstulov_alex"]
[Result "1-0"]
[WhiteElo "2368"]
[BlackElo "2650"]
[TimeControl "180+1"]
[EndTime "8:05:56 PDT"]
[Termination "Der_Balak_3Halak won by resignation"]

1. e4 {[%clk 0:03:00.9]} 1... c6 {[%clk 0:02:56.5]} 2. d4 {[%clk 0:02:58.4]}
2... d5 {[%clk 0:02:57.4]} 3. exd5 {[%clk 0:02:59.2]} 3... cxd5 {[%clk
0:02:38.7]} 4. Nf3 {[%clk 0:03:00.1]} 4... Nf6 {[%clk 0:02:39.4]} 5. Bf4 {[%clk
0:02:58.3]} 5... Nc6 {[%clk 0:02:39.2]} 6. Bb5 {[%clk 0:02:57.8]} 6... Bd7
{[%clk 0:02:32.1]} 7. O-O {[%clk 0:02:57.3]} 7... e6 {[%clk 0:02:31.3]} 8. c3
{[%clk 0:02:55.6]} 8... Be7 {[%clk 0:02:31.9]} 9. Re1 {[%clk 0:02:54.5]} 9...
O-O {[%clk 0:02:32.4]} 10. Nbd2 {[%clk 0:02:53.3]} 10... Qb6 {[%clk 0:02:32]}
11. Qe2 {[%clk 0:02:35]} 11... Rfc8 {[%clk 0:02:15.4]} 12. Rab1 {[%clk
0:02:28.4]} 12... a6 {[%clk 0:02:05.2]} 13. Bd3 {[%clk 0:02:27.5]} 13... Na5
{[%clk 0:02:04.3]} 14. b4 {[%clk 0:02:08]} 14... Nc6 {[%clk 0:01:35.7]} 15. Nb3
{[%clk 0:02:00.8]} 15... Na7 {[%clk 0:01:26.8]} 16. Nc5 {[%clk 0:01:52.9]} 16...
Bb5 {[%clk 0:01:22.4]} 17. Ne5 {[%clk 0:01:48.9]} 17... Bxd3 {[%clk 0:01:10.6]}
18. Qxd3 {[%clk 0:01:49.8]} 18... Qb5 {[%clk 0:01:04.1]} 19. Qh3 {[%clk
0:01:37.9]} 19... b6 {[%clk 0:00:56]} 20. Nxf7 {[%clk 0:01:23]} 20... Bxc5
{[%clk 0:00:20.5]} 21. bxc5 {[%clk 0:01:15]} 21... Kxf7 {[%clk 0:00:20.2]} 22.
Qxe6+ {[%clk 0:01:13]} 22... Kg6 {[%clk 0:00:20.8]} 23. Rxb5 {[%clk 0:01:12.1]}
23... Nxb5 {[%clk 0:00:20.9]} 24. g4 {[%clk 0:01:01.7]} 24... bxc5 {[%clk
0:00:19.3]} 25. Qf5+ {[%clk 0:01:01.4]} 25... Kf7 {[%clk 0:00:19.7]} 26. g5
{[%clk 0:01:01.6]} 26... Rg8 {[%clk 0:00:15.4]} 27. gxf6 {[%clk 0:00:58.4]}
27... gxf6+ {[%clk 0:00:16.3]} 1-0

[Event "Early-Titled-Tuesday-Blitz-May-14-2024"]
[Site "Chess.com"]
[Date "2024.05.14"]
[Round "1"]
[White "GoltsevDmitry2000"]
[Black "JacksterThePro"]
[Result "0-1"]
[WhiteElo "2748"]
[BlackElo "2450"]
[TimeControl "180+1"]
[EndTime "8:06:01 PDT"]
[Termination "JacksterThePro won by checkmate"]

1. e4 {[%clk 0:03:00]} 1... e5 {[%clk 0:02:54.7]} 2. Nf3 {[%clk 0:02:59.8]} 2...
Nc6 {[%clk 0:02:54]} 3. Bb5 {[%clk 0:03:00.2]} 3... g6 {[%clk 0:02:49.4]} 4. c3
{[%clk 0:02:57.2]} 4... a6 {[%clk 0:02:48.6]} 5. Ba4 {[%clk 0:02:54.2]} 5... Bg7
{[%clk 0:02:46.5]} 6. O-O {[%clk 0:02:54.2]} 6... d6 {[%clk 0:02:43.5]} 7. d4
{[%clk 0:02:54]} 7... exd4 {[%clk 0:02:44]} 8. cxd4 {[%clk 0:02:54.9]} 8... b5
{[%clk 0:02:43.6]} 9. Bb3 {[%clk 0:02:55.1]} 9... Nge7 {[%clk 0:02:43.9]} 10.
Bg5 {[%clk 0:02:54.4]} 10... O-O {[%clk 0:02:42.9]} 11. Nc3 {[%clk 0:02:52.6]}
11... h6 {[%clk 0:02:41]} 12. Be3 {[%clk 0:02:51.6]} 12... Na5 {[%clk
0:02:40.4]} 13. Bc2 {[%clk 0:02:51.1]} 13... Nc4 {[%clk 0:02:39.7]} 14. Bc1
{[%clk 0:02:49.4]} 14... c5 {[%clk 0:02:39.9]} 15. d5 {[%clk 0:02:38.5]} 15...
f5 {[%clk 0:02:30.2]} 16. Qe2 {[%clk 0:02:35.4]} 16... f4 {[%clk 0:02:25.1]} 17.
Rb1 {[%clk 0:02:31.5]} 17... Bg4 {[%clk 0:02:24.6]} 18. h3 {[%clk 0:02:30]}
18... Bh5 {[%clk 0:01:59.5]} 19. g4 {[%clk 0:02:23.2]} 19... fxg3 {[%clk
0:01:57.6]} 20. fxg3 {[%clk 0:02:24.1]} 20... Bxf3 {[%clk 0:01:34.8]} 21. Rxf3
{[%clk 0:02:23.8]} 21... Rxf3 {[%clk 0:01:32.4]} 22. Qxf3 {[%clk 0:02:24.7]}
22... Qd7 {[%clk 0:01:33]} 23. Qg2 {[%clk 0:02:19.3]} 23... Rf8 {[%clk
0:01:32.9]} 24. Bd3 {[%clk 0:02:08.2]} 24... Bd4+ {[%clk 0:01:28.4]} 25. Kh2
{[%clk 0:02:07.4]} 25... Rf2 {[%clk 0:01:28]} 26. Qxf2 {[%clk 0:02:05.3]} 26...
Bxf2 {[%clk 0:01:27.8]} 27. Bxh6 {[%clk 0:02:05.9]} 27... Ne5 {[%clk 0:01:23.7]}
28. Be2 {[%clk 0:02:04.8]} 28... b4 {[%clk 0:01:20.3]} 29. Nd1 {[%clk
0:01:58.9]} 29... Bd4 {[%clk 0:01:20.5]} 30. Ne3 {[%clk 0:01:58.7]} 30... Nf7
{[%clk 0:01:19.3]} 31. Bg4 {[%clk 0:01:53.8]} 31... Qa4 {[%clk 0:01:18.6]} 32.
Bd1 {[%clk 0:01:32.7]} 32... Qxa2 {[%clk 0:01:17.1]} 33. Rc1 {[%clk 0:01:09.9]}
33... Nxh6 {[%clk 0:01:13.6]} 34. Nc4 {[%clk 0:01:09.2]} 34... Nf7 {[%clk
0:01:07]} 35. Bg4 {[%clk 0:01:07.9]} 35... Ne5 {[%clk 0:01:06.3]} 36. Be6+
{[%clk 0:01:07.7]} 36... Kg7 {[%clk 0:01:06.6]} 37. h4 {[%clk 0:00:53.6]} 37...
Nxc4 {[%clk 0:01:06.3]} 38. Rf1 {[%clk 0:00:54.2]} 38... Qxb2+ {[%clk
0:01:05.9]} 39. Kh3 {[%clk 0:00:54.5]} 39... Ne5 {[%clk 0:01:06.3]} 40. h5
{[%clk 0:00:51.9]} 40... gxh5 {[%clk 0:01:06.1]} 41. Kh4 {[%clk 0:00:46.5]}
41... Qh2+ {[%clk 0:01:05.8]} 42. Kg5 {[%clk 0:00:46.7]} 42... Be3+ {[%clk
0:01:06.7]} 43. Rf4 {[%clk 0:00:45.4]} 43... Nf3# {[%clk 0:01:07.3]} 0-1

[Event "Early-Titled-Tuesday-Blitz-May-14-2024"]
[Site "Chess.com"]
[Date "2024.05.14"]
[Round "1"]
[White "ChessSG1"]
[Black "Buzhizhebuguai"]
[Result "1-0"]
[WhiteElo "2468"]
[BlackElo "2764"]
[TimeControl "180+1"]
[EndTime "8:06:02 PDT"]
[Termination "ChessSG1 won by resignation"]

1. c4 {[%clk 0:03:00.9]} 1... g6 {[%clk 0:02:54.5]} 2. g3 {[%clk 0:03:00.8]}
2... Bg7 {[%clk 0:02:53.8]} 3. Bg2 {[%clk 0:03:01.3]} 3... c5 {[%clk 0:02:54.7]}
4. Nc3 {[%clk 0:03:01.3]} 4... Nc6 {[%clk 0:02:54.4]} 5. a3 {[%clk 0:03:00.4]}
5... d6 {[%clk 0:02:54.3]} 6. Rb1 {[%clk 0:03:00.2]} 6... e6 {[%clk 0:02:52.8]}
7. b4 {[%clk 0:02:57.7]} 7... Nge7 {[%clk 0:02:53]} 8. e3 {[%clk 0:02:50.2]}
8... O-O {[%clk 0:02:53]} 9. Nge2 {[%clk 0:02:50]} 9... Rb8 {[%clk 0:02:51.3]}
10. d3 {[%clk 0:02:47.7]} 10... b6 {[%clk 0:02:51.5]} 11. b5 {[%clk 0:02:43.1]}
11... Na5 {[%clk 0:02:51.3]} 12. e4 {[%clk 0:02:37.3]} 12... Bb7 {[%clk
0:02:48.2]} 13. Bf4 {[%clk 0:02:22.6]} 13... Qd7 {[%clk 0:02:48.4]} 14. O-O
{[%clk 0:02:22.3]} 14... Rbd8 {[%clk 0:02:48.8]} 15. Bd2 {[%clk 0:02:03.6]}
15... f5 {[%clk 0:02:40.1]} 16. Na4 {[%clk 0:01:48.9]} 16... Kh8 {[%clk
0:02:25.9]} 17. Bxa5 {[%clk 0:01:43.8]} 17... bxa5 {[%clk 0:02:26.2]} 18. Qd2
{[%clk 0:01:44.4]} 18... Qc7 {[%clk 0:02:25.7]} 19. b6 {[%clk 0:01:39.1]} 19...
axb6 {[%clk 0:02:25.9]} 20. Nxb6 {[%clk 0:01:34]} 20... Nc6 {[%clk 0:02:20.7]}
21. Na4 {[%clk 0:01:27.2]} 21... Ba8 {[%clk 0:02:15.5]} 22. Nac3 {[%clk
0:01:24.2]} 22... Rd7 {[%clk 0:02:02.4]} 23. Nb5 {[%clk 0:01:24.5]} 23... Qd8
{[%clk 0:02:02.6]} 24. Nf4 {[%clk 0:01:18]} 24... Re8 {[%clk 0:02:01.6]} 25. h4
{[%clk 0:01:17.9]} 25... Ne5 {[%clk 0:01:58.5]} 26. Rfe1 {[%clk 0:00:59.8]}
26... Bc6 {[%clk 0:01:40.8]} 27. exf5 {[%clk 0:00:55.2]} 27... gxf5 {[%clk
0:01:40.6]} 28. Bxc6 {[%clk 0:00:54.7]} 28... Nxc6 {[%clk 0:01:39.2]} 29. Nxe6
{[%clk 0:00:55.1]} 29... Qa8 {[%clk 0:01:32.3]} 30. Nec7 {[%clk 0:00:38.5]}
30... Rxe1+ {[%clk 0:01:29.4]} 31. Rxe1 {[%clk 0:00:34.8]} 31... Qg8 {[%clk
0:01:25.9]} 32. Re8 {[%clk 0:00:33.3]} 32... Bf8 {[%clk 0:01:26.2]} 33. Ne6
{[%clk 0:00:20.6]} 33... Ne5 {[%clk 0:01:26.4]} 34. Qe2 {[%clk 0:00:20.1]} 34...
Rf7 {[%clk 0:01:24.1]} 35. Nxd6 {[%clk 0:00:19.8]} 35... Rf6 {[%clk 0:01:23.2]}
1-0

[Event "Early-Titled-Tuesday-Blitz-May-14-2024"]
[Site "Chess.com"]
[Date "2024.05.14"]
[Round "1"]
[White "DvaHrasta"]
[Black "Firouzja2003"]
[Result "0-1"]
[WhiteElo "2548"]
[BlackElo "3194"]
[TimeControl "180+1"]
[EndTime "8:06:05 PDT"]
[Termination "Firouzja2003 won on time"]

1. c4 {[%clk 0:03:00.9]} 1... Nf6 {[%clk 0:02:59.8]} 2. g3 {[%clk 0:03:00.6]}
2... g6 {[%clk 0:03:00.4]} 3. Bg2 {[%clk 0:03:00.6]} 3... Bg7 {[%clk 0:03:01.2]}
4. Nc3 {[%clk 0:03:00.8]} 4... O-O {[%clk 0:03:01.7]} 5. Nf3 {[%clk 0:03:00.9]}
5... d6 {[%clk 0:03:02.3]} 6. O-O {[%clk 0:03:00.8]} 6... e5 {[%clk 0:03:02.2]}
7. d3 {[%clk 0:03:00.7]} 7... Nc6 {[%clk 0:03:02.6]} 8. Rb1 {[%clk 0:03:00.9]}
8... a5 {[%clk 0:03:02.5]} 9. a3 {[%clk 0:03:01.3]} 9... Re8 {[%clk 0:03:02.9]}
10. e4 {[%clk 0:03:00.7]} 10... Nd4 {[%clk 0:02:56.7]} 11. Nxd4 {[%clk
0:02:57.2]} 11... exd4 {[%clk 0:02:57]} 12. Ne2 {[%clk 0:02:57.3]} 12... Nd7
{[%clk 0:02:57.1]} 13. b4 {[%clk 0:02:56]} 13... axb4 {[%clk 0:02:55.4]} 14.
axb4 {[%clk 0:02:56.2]} 14... c5 {[%clk 0:02:51.5]} 15. Bb2 {[%clk 0:02:48.1]}
15... Ne5 {[%clk 0:02:42.3]} 16. h3 {[%clk 0:02:42.7]} 16... Bd7 {[%clk
0:02:27.7]} 17. bxc5 {[%clk 0:02:42.4]} 17... dxc5 {[%clk 0:02:27.9]} 18. f4
{[%clk 0:02:41.6]} 18... Nc6 {[%clk 0:02:23.5]} 19. Ra1 {[%clk 0:02:25.3]} 19...
Nb4 {[%clk 0:02:20.6]} 20. Qb3 {[%clk 0:02:20]} 20... b5 {[%clk 0:01:53.3]} 21.
e5 {[%clk 0:01:47]} 21... Rb8 {[%clk 0:01:53]} 22. cxb5 {[%clk 0:01:12.9]} 22...
Bxb5 {[%clk 0:01:47.3]} 23. Nc1 {[%clk 0:01:04.7]} 23... Bd7 {[%clk 0:01:39.7]}
24. Qd1 {[%clk 0:00:46.6]} 24... Be6 {[%clk 0:01:37.5]} 25. Ba3 {[%clk
0:00:38.8]} 25... Nd5 {[%clk 0:01:33.4]} 26. Qf3 {[%clk 0:00:24.3]} 26... Ne3
{[%clk 0:01:33.4]} 27. Rf2 {[%clk 0:00:10.7]} 27... Bd5 {[%clk 0:01:32.9]} 28.
Qe2 {[%clk 0:00:09.9]} 28... Bxg2 {[%clk 0:01:32.7]} 29. Rxg2 {[%clk 0:00:10.3]}
29... Nxg2 {[%clk 0:01:24.7]} 30. Qxg2 {[%clk 0:00:09.9]} 30... Ra8 {[%clk
0:01:24.2]} 31. Nb3 {[%clk 0:00:06.4]} 31... Qb6 {[%clk 0:01:23.6]} 32. Qc2
{[%clk 0:00:04]} 32... c4 {[%clk 0:01:20]} 33. Qxc4 {[%clk 0:00:01.4]} 33...
Rec8 {[%clk 0:01:20.7]} 34. Qd5 {[%clk 0:00:00.9]} 34... Bf8 {[%clk 0:01:20.8]}
0-1

[Event "Early-Titled-Tuesday-Blitz-May-14-2024"]
[Site "Chess.com"]
[Date "2024.05.14"]
[Round "1"]
[White "Alenzer"]
[Black "becemix"]
[Result "0-1"]
[WhiteElo "2207"]
[BlackElo "2589"]
[TimeControl "180+1"]
[EndTime "8:06:05 PDT"]
[Termination "becemix won by resignation"]

1. e4 {[%clk 0:02:58.9]} 1... c5 {[%clk 0:02:54]} 2. Nf3 {[%clk 0:02:52.1]} 2...
d6 {[%clk 0:02:53.3]} 3. d4 {[%clk 0:02:51.4]} 3... cxd4 {[%clk 0:02:53.9]} 4.
Nxd4 {[%clk 0:02:51.5]} 4... Nf6 {[%clk 0:02:54.2]} 5. Nc3 {[%clk 0:02:51]} 5...
a6 {[%clk 0:02:54.7]} 6. Be2 {[%clk 0:02:46.9]} 6... e5 {[%clk 0:02:54.4]} 7.
Nf3 {[%clk 0:02:43.2]} 7... Be7 {[%clk 0:02:52.8]} 8. O-O {[%clk 0:02:40]} 8...
O-O {[%clk 0:02:52.3]} 9. Be3 {[%clk 0:02:36.1]} 9... Nbd7 {[%clk 0:02:47.3]}
10. Qd2 {[%clk 0:02:27.3]} 10... b5 {[%clk 0:02:41.2]} 11. Nd5 {[%clk
0:02:04.5]} 11... Nxd5 {[%clk 0:02:31.1]} 12. Qxd5 {[%clk 0:01:54.7]} 12... Rb8
{[%clk 0:02:30.8]} 13. Rfd1 {[%clk 0:01:32.9]} 13... Bb7 {[%clk 0:02:27.8]} 14.
Qd3 {[%clk 0:01:30.5]} 14... Nf6 {[%clk 0:02:22.6]} 15. h3 {[%clk 0:01:02.6]}
15... Bxe4 {[%clk 0:02:15.5]} 16. Qb3 {[%clk 0:00:51.5]} 16... Qc8 {[%clk
0:02:08.5]} 17. Bd3 {[%clk 0:00:44.3]} 17... Bd5 {[%clk 0:02:03]} 18. Qc3 {[%clk
0:00:37.7]} 18... Qxc3 {[%clk 0:02:01.3]} 19. bxc3 {[%clk 0:00:37.8]} 19... e4
{[%clk 0:02:02.2]} 20. Be2 {[%clk 0:00:29.8]} 20... exf3 {[%clk 0:02:01.8]} 21.
Bxf3 {[%clk 0:00:30.3]} 21... Bxf3 {[%clk 0:02:01.5]} 22. gxf3 {[%clk
0:00:30.8]} 22... Rbc8 {[%clk 0:01:54.1]} 23. Bd4 {[%clk 0:00:29.6]} 23... Nd5
{[%clk 0:01:48.4]} 24. Bxg7 {[%clk 0:00:22.4]} 24... Kxg7 {[%clk 0:01:46.3]} 25.
Rxd5 {[%clk 0:00:21.9]} 25... Rxc3 {[%clk 0:01:46.6]} 26. Rd2 {[%clk 0:00:19.6]}
26... Rfc8 {[%clk 0:01:45.9]} 27. Rc1 {[%clk 0:00:18.7]} 27... Bg5 {[%clk
0:01:46.2]} 28. Rxd6 {[%clk 0:00:14.2]} 28... Bxc1 {[%clk 0:01:45.9]} 29. Rd1
{[%clk 0:00:13]} 29... Rxc2 {[%clk 0:01:46]} 30. Kh2 {[%clk 0:00:12.8]} 30...
Be3 {[%clk 0:01:43.1]} 31. Kg3 {[%clk 0:00:10]} 31... Bxf2+ {[%clk 0:01:43.2]}
32. Kf4 {[%clk 0:00:09.6]} 32... R2c4+ {[%clk 0:01:42.4]} 33. Ke5 {[%clk
0:00:07.1]} 33... R8c5+ {[%clk 0:01:43.3]} 34. Kd6 {[%clk 0:00:07.2]} 34... Bg3+
{[%clk 0:01:43.6]} 35. Ke7 {[%clk 0:00:07.5]} 35... Rc7+ {[%clk 0:01:43.2]} 36.
Ke8 {[%clk 0:00:08.4]} 36... Rc8+ {[%clk 0:01:36.3]} 0-1

[Event "Early-Titled-Tuesday-Blitz-May-14-2024"]
[Site "Chess.com"]
[Date "2024.05.14"]
[Round "1"]
[White "InitiatingASC"]
[Black "lucasmito"]
[Result "1-0"]
[WhiteElo "2432"]
[BlackElo "2726"]
[TimeControl "180+1"]
[EndTime "8:06:08 PDT"]
[Termination "InitiatingASC won by resignation"]

1. d4 {[%clk 0:03:00.9]} 1... d5 {[%clk 0:02:56.6]} 2. c4 {[%clk 0:03:00.2]}
2... dxc4 {[%clk 0:02:57.5]} 3. e3 {[%clk 0:03:00.1]} 3... e5 {[%clk 0:02:56.4]}
4. Bxc4 {[%clk 0:02:59.3]} 4... exd4 {[%clk 0:02:54.5]} 5. exd4 {[%clk
0:02:55.1]} 5... Ne7 {[%clk 0:02:54.9]} 6. Nf3 {[%clk 0:02:49.4]} 6... Nd5
{[%clk 0:02:27.4]} 7. O-O {[%clk 0:02:15.6]} 7... Be7 {[%clk 0:02:27.8]} 8. Nc3
{[%clk 0:02:13.3]} 8... Be6 {[%clk 0:02:23.3]} 9. Qb3 {[%clk 0:02:04.3]} 9...
Nxc3 {[%clk 0:02:15.6]} 10. bxc3 {[%clk 0:01:58]} 10... Bxc4 {[%clk 0:02:15]}
11. Qxc4 {[%clk 0:01:54.4]} 11... O-O {[%clk 0:02:15.6]} 12. Rb1 {[%clk
0:01:52]} 12... b6 {[%clk 0:02:06.2]} 13. Bf4 {[%clk 0:01:50.8]} 13... Bd6
{[%clk 0:02:05.6]} 14. Ne5 {[%clk 0:01:40.9]} 14... c5 {[%clk 0:01:54.8]} 15.
Qd5 {[%clk 0:01:28.1]} 15... Bxe5 {[%clk 0:01:47.5]} 16. Qxe5 {[%clk 0:01:18.8]}
16... cxd4 {[%clk 0:01:48.1]} 17. Qxd4 {[%clk 0:01:08.6]} 17... Nc6 {[%clk
0:01:47.5]} 18. Qe4 {[%clk 0:01:06.8]} 18... Rc8 {[%clk 0:01:45]} 19. Rfd1
{[%clk 0:00:59.8]} 19... Qf6 {[%clk 0:01:43]} 20. Rd6 {[%clk 0:00:55.4]} 20...
Qxc3 {[%clk 0:01:42]} 21. Rc1 {[%clk 0:00:55.3]} 21... Rfe8 {[%clk 0:01:18.2]}
22. Rxc6 {[%clk 0:00:28.1]} 22... Rcd8 {[%clk 0:00:27.4]} 23. Qxe8+ {[%clk
0:00:25.1]} 23... Rxe8 {[%clk 0:00:27.4]} 24. R6xc3 {[%clk 0:00:25.3]} 1-0

[Event "Early-Titled-Tuesday-Blitz-May-14-2024"]
[Site "Chess.com"]
[Date "2024.05.14"]
[Round "1"]
[White "Mbneu"]
[Black "Vasily_IM"]
[Result "0-1"]
[WhiteElo "2223"]
[BlackElo "2597"]
[TimeControl "180+1"]
[EndTime "8:06:09 PDT"]
[Termination "Vasily_IM won by resignation"]

1. d4 {[%clk 0:02:59.8]} 1... d5 {[%clk 0:02:58.8]} 2. c4 {[%clk 0:02:59.9]}
2... e6 {[%clk 0:02:58.7]} 3. Nf3 {[%clk 0:02:59.3]} 3... Nf6 {[%clk 0:02:59]}
4. g3 {[%clk 0:02:59.6]} 4... a6 {[%clk 0:02:59]} 5. Bg2 {[%clk 0:02:59.4]} 5...
dxc4 {[%clk 0:02:58.9]} 6. Qc2 {[%clk 0:02:56.8]} 6... b5 {[%clk 0:02:58.7]} 7.
Ne5 {[%clk 0:02:55.8]} 7... c6 {[%clk 0:02:58]} 8. O-O {[%clk 0:02:46.1]} 8...
Bb7 {[%clk 0:02:56.2]} 9. Rd1 {[%clk 0:02:40.8]} 9... Be7 {[%clk 0:02:54.2]} 10.
Bg5 {[%clk 0:02:30.8]} 10... O-O {[%clk 0:02:53.2]} 11. Nc3 {[%clk 0:02:25.1]}
11... Qb6 {[%clk 0:02:38.5]} 12. Ne4 {[%clk 0:02:16.4]} 12... Re8 {[%clk
0:02:31.5]} 13. Nxf6+ {[%clk 0:02:11.7]} 13... gxf6 {[%clk 0:02:30]} 14. Nxf7
{[%clk 0:01:45.8]} 14... fxg5 {[%clk 0:02:27.6]} 15. Bh3 {[%clk 0:01:40.3]}
15... Bf6 {[%clk 0:02:08.8]} 16. f4 {[%clk 0:01:32.1]} 16... Nd7 {[%clk
0:01:55.5]} 17. fxg5 {[%clk 0:01:23.6]} 17... Bxd4+ {[%clk 0:01:49.1]} 18. Kf1
{[%clk 0:01:12.8]} 18... Nf8 {[%clk 0:01:36.2]} 19. Nh6+ {[%clk 0:01:02.6]}
19... Kg7 {[%clk 0:01:32.9]} 20. Qe4 {[%clk 0:01:00.1]} 20... c5 {[%clk
0:01:29.3]} 21. Qh4 {[%clk 0:00:36.1]} 21... Ng6 {[%clk 0:01:12.5]} 22. Qh5
{[%clk 0:00:23.2]} 22... Rf8+ {[%clk 0:01:09.3]} 23. Ke1 {[%clk 0:00:23]} 23...
Rad8 {[%clk 0:01:03.3]} 24. Rd2 {[%clk 0:00:17.9]} 24... Bf2+ {[%clk 0:00:59.2]}
25. Kd1 {[%clk 0:00:16.5]} 25... Rxd2+ {[%clk 0:00:59.7]} 26. Kxd2 {[%clk
0:00:16.7]} 26... Qd6+ {[%clk 0:00:59.5]} 27. Kc2 {[%clk 0:00:08.6]} 27... Be4+
{[%clk 0:00:58.8]} 0-1

[Event "Early-Titled-Tuesday-Blitz-May-14-2024"]
[Site "Chess.com"]
[Date "2024.05.14"]
[Round "1"]
[White "ChainedDowntohell"]
[Black "carloseduar100"]
[Result "1-0"]
[WhiteElo "2594"]
[BlackElo "2211"]
[TimeControl "180+1"]
[EndTime "8:06:13 PDT"]
[Termination "ChainedDowntohell won by resignation"]

1. d4 {[%clk 0:03:00.9]} 1... d5 {[%clk 0:02:58.4]} 2. c4 {[%clk 0:02:59.8]}
2... e5 {[%clk 0:02:53.2]} 3. e3 {[%clk 0:02:56.6]} 3... exd4 {[%clk 0:02:40.4]}
4. cxd5 {[%clk 0:02:56.6]} 4... Qxd5 {[%clk 0:02:38.9]} 5. Nc3 {[%clk
0:02:55.3]} 5... Qd8 {[%clk 0:02:34.2]} 6. exd4 {[%clk 0:02:54.2]} 6... Nf6
{[%clk 0:02:27.7]} 7. Bc4 {[%clk 0:02:53.7]} 7... c6 {[%clk 0:02:12.9]} 8. Qb3
{[%clk 0:02:52]} 8... Qc7 {[%clk 0:02:06.7]} 9. Nf3 {[%clk 0:02:36.4]} 9... Bd6
{[%clk 0:02:06.5]} 10. Bg5 {[%clk 0:02:30.7]} 10... b5 {[%clk 0:02:04.1]} 11.
Bd3 {[%clk 0:01:53]} 11... Nbd7 {[%clk 0:02:02.7]} 12. Rc1 {[%clk 0:01:51.1]}
12... Qb6 {[%clk 0:01:57.8]} 13. Ne4 {[%clk 0:01:50.2]} 13... Nxe4 {[%clk
0:01:56.7]} 14. Bxe4 {[%clk 0:01:49.4]} 14... Bb7 {[%clk 0:01:55.7]} 15. O-O
{[%clk 0:01:26.5]} 15... O-O {[%clk 0:01:55.8]} 16. Qc2 {[%clk 0:01:21.1]} 16...
h6 {[%clk 0:01:55.2]} 17. Be3 {[%clk 0:01:19]} 17... Rfe8 {[%clk 0:01:55.7]} 18.
Bxc6 {[%clk 0:01:13.5]} 18... Rac8 {[%clk 0:01:28.6]} 19. d5 {[%clk 0:01:13.2]}
19... Rxe3 {[%clk 0:01:28.7]} 20. fxe3 {[%clk 0:01:11]} 20... Qxe3+ {[%clk
0:01:29.6]} 21. Qf2 {[%clk 0:01:10.8]} 21... Qxf2+ {[%clk 0:01:29.6]} 22. Kxf2
{[%clk 0:01:08.8]} 22... Bc5+ {[%clk 0:01:16.5]} 23. Kg3 {[%clk 0:01:04.7]}
23... Bxc6 {[%clk 0:01:16.5]} 24. dxc6 {[%clk 0:01:04]} 24... Rxc6 {[%clk
0:01:17.4]} 25. Rfd1 {[%clk 0:00:57.9]} 25... Bd6+ {[%clk 0:01:04.3]} 26. Kh3
{[%clk 0:00:58]} 26... Ra6 {[%clk 0:01:04.8]} 27. Rc8+ {[%clk 0:00:54.1]} 27...
Nf8 {[%clk 0:00:58.9]} 28. Nd4 {[%clk 0:00:43.5]} 28... Be5 {[%clk 0:00:39.3]}
29. Nf5 {[%clk 0:00:41.4]} 29... g6 {[%clk 0:00:38.2]} 30. Rxf8+ {[%clk
0:00:40.2]} 1-0